fUST/lending_fUST_20250628
["ID","MTS","AMOUNT","RATE_DAILY","PERIOD"]
[368289587,1751094638784,-460.0,0.00019178,2]
[368289589,1751094638794,-460.0,0.00019178,2]
[368289591,1751094638803,-460.0,0.00019178,2]
[368289593,1751094638813,-500.0,0.00019178,2]
[368289594,1751094638823,-462.0247974,0.00019178,2]
[368289597,1751094638833,-460.0,0.00019178,2]
[368289598,1751094638842,-764.45,0.00019178,2]
[368289599,1751094638853,-460.0,0.00019178,2]
[368289600,1751094638863,-460.0,0.00019178,2]
[368289601,1751094638872,-460.0,0.00019178,2]
[368289602,1751094638882,-460.0,0.00019178,2]
[368289603,1751094638891,-460.0,0.00019178,2]
[368289604,1751094638900,-601.84,0.00019178,2]
[368289605,1751094638910,-460.0,0.00019178,2]
[368289606,1751094638920,-460.0,0.00019178,2]
[368289607,1751094638930,-461.6040106,0.00019178,2]
[368289608,1751094638941,-460.0,0.00019178,2]
[368289609,1751094638950,-460.0,0.00019178,2]
[368289610,1751094638960,-617.3,0.00019178,2]
[368289611,1751094638969,-460.0,0.00019178,2]
[368289612,1751094638979,-2830.86,0.00019178,2]
[368289613,1751094638988,-460.0,0.00019178,2]
[368289614,1751094638998,-460.0,0.00019178,2]
[368289615,1751094639007,-460.0,0.00019178,2]
[368289616,1751094639017,-460.0,0.00019178,2]
[368289617,1751094639027,-460.0,0.00019178,2]
[368289618,1751094639036,-460.0,0.00019178,2]
[368289619,1751094639046,-460.0,0.00019178,2]
[368289620,1751094639055,-460.0,0.00019178,2]
[368289621,1751094639065,-460.94815967,0.00019178,2]
[368289622,1751094639074,-460.0,0.00019178,2]
[368289623,1751094639084,-460.0,0.00019178,2]
[368289624,1751094639094,-460.0,0.00019178,2]
[368289625,1751094639103,-460.0,0.00019178,2]
[368289626,1751094639113,-460.0,0.00019178,2]
[368289627,1751094639122,-460.0,0.00019178,2]
[368289628,1751094639132,-487.16,0.00019178,2]
[368289629,1751094639141,-466.54,0.00019178,2]
[368289630,1751094639150,-460.0,0.00019178,2]
[368289631,1751094639159,-2150.34,0.00019178,2]
[368289632,1751094639168,-487.1086644,0.00019178,2]
[368289633,1751094639178,-460.0,0.00019178,2]
[368289634,1751094639187,-460.0,0.00019178,2]
[368289635,1751094639196,-460.0,0.00019178,2]
[368289636,1751094639205,-460.0,0.00019178,2]
[368289637,1751094639215,-551.56,0.00019178,2]
[368289638,1751094639225,-212.42466646,0.00019178,2]
[368289639,1751094639237,-863.65533354,0.00019178,2]
[368289640,1751094639247,-460.0,0.00019178,2]
[368289641,1751094639256,-460.0,0.00019178,2]
[368289642,1751094639267,-460.0,0.00019178,2]
[368289643,1751094639276,-460.0,0.00019178,2]
[368289644,1751094639285,-576.05,0.00019178,2]
[368289645,1751094639294,-576.05,0.00019178,2]
[368289646,1751094639304,-576.05,0.00019178,2]
[368289647,1751094639313,-576.05,0.00019178,2]
[368289648,1751094639322,-1345.62553836,0.00019178,2]
[368289649,1751094639342,-2059.94446164,0.00019178,2]
[368289650,1751094639351,-576.05,0.00019178,2]
[368289651,1751094639361,-460.0,0.00019178,2]
[368289652,1751094639370,-576.05,0.00019178,2]
[368289653,1751094639379,-460.0,0.00019178,2]
[368289654,1751094639389,-460.0,0.00019178,2]
[368289655,1751094639398,-460.0,0.00019178,2]
[368289656,1751094639412,-2514.69,0.00019178,2]
[368289657,1751094639422,-1181.02,0.00019178,2]
[368289658,1751094639432,-460.0,0.00019178,2]
[368289659,1751094639443,-460.0,0.00019178,2]
[368289660,1751094639452,-460.0,0.00019178,2]
[368289661,1751094639462,-557.09,0.00019178,2]
[368289662,1751094639471,-460.0,0.00019178,2]
[368289663,1751094639480,-460.0,0.00019178,2]
[368289664,1751094639489,-460.0,0.00019178,2]
[368289665,1751094639499,-460.0,0.00019178,2]
[368289666,1751094639508,-460.0,0.00019178,2]
[368289667,1751094639517,-460.0,0.00019178,2]
[368289668,1751094639526,-460.0,0.00019178,2]
[368289669,1751094639536,-460.0,0.00019178,2]
[368289670,1751094639545,-460.0,0.00019178,2]
[368289671,1751094639554,-500.0,0.00019178,2]
[368289672,1751094639564,-460.0,0.00019178,2]
[368289673,1751094639573,-460.0,0.00019178,2]
[368289674,1751094639583,-460.0,0.00019178,2]
[368289676,1751094639592,-460.0,0.00019178,2]
[368289677,1751094639602,-465.55,0.00019178,2]
[368289679,1751094639611,-460.0,0.00019178,2]
[368289680,1751094639621,-464.68311241,0.00019178,2]
[368289681,1751094639630,-460.0,0.00019178,2]
[368289682,1751094639640,-460.0,0.00019178,2]
[368289683,1751094639650,-460.0,0.00019178,2]
[368289684,1751094639659,-1418.65,0.00019178,2]
[368289685,1751094639669,-460.0,0.00019178,2]
[368289686,1751094639679,-460.0,0.00019178,2]
[368289687,1751094639688,-256.53621236,0.00019178,2]
[368289688,1751094639697,-493.17,0.00019178,2]
[368289689,1751094639706,-460.0,0.00019178,2]
[368289690,1751094639715,-460.0,0.00019178,2]
[368289691,1751094639725,-182.42,0.00019178,2]
[368289692,1751094639734,-460.63427881,0.00019178,2]
[368289693,1751094639743,-460.0,0.00019178,2]
[368289694,1751094639752,-1869.93,0.00019178,2]
[368289695,1751094639761,-2065.34,0.00019178,2]
[368289696,1751094639771,-460.0,0.00019178,2]
[368289697,1751094639780,-460.0,0.00019178,2]
[368289698,1751094639790,-4376.08,0.00019178,2]
[368289699,1751094639800,-460.0,0.00019178,2]
[368289700,1751094639810,-460.0,0.00019178,2]
[368289701,1751094639819,-463.71,0.00019178,2]
[368289702,1751094639828,-463.03041247,0.00019178,2]
[368289703,1751094639838,-460.0,0.00019178,2]
[368289704,1751094639847,-460.0,0.00019178,2]
[368289705,1751094639857,-460.0,0.00019178,2]
[368289706,1751094639866,-422.03337726,0.00019178,2]
[368289707,1751094639876,-1857.96,0.00019178,2]
[368289708,1751094639886,-460.0,0.00019178,2]
[368289709,1751094639895,-460.0,0.00019178,2]
[368289711,1751094639904,-460.0,0.00019178,2]
[368289712,1751094639914,-747.42,0.00019178,2]
[368289713,1751094639923,-460.0,0.00019178,2]
[368289714,1751094639933,-659.31,0.00019178,2]
[368289715,1751094639950,-2141.39,0.00019178,2]
[368289716,1751094639964,-668.97,0.00019178,2]
[368289717,1751094639974,-992.99,0.00019178,2]
[368289718,1751094639984,-460.0,0.00019178,2]
[368289720,1751094639994,-460.0,0.00019178,2]
[368289722,1751094640004,-460.0,0.00019178,2]
[368289723,1751094640014,-449.66370701,0.00019178,2]
[368289724,1751094640024,-568.17,0.00019178,2]
[368289725,1751094640034,-460.0,0.00019178,2]
[368289726,1751094640044,-460.0,0.00019178,2]
[368289727,1751094640054,-460.0,0.00019178,2]
[368289728,1751094640064,-460.0,0.00019178,2]
[368289729,1751094640074,-460.0,0.00019178,2]
[368289730,1751094640083,-460.0,0.00019178,2]
[368289731,1751094640093,-460.0,0.00019178,2]
[368289734,1751094640103,-460.0,0.00019178,2]
[368289736,1751094640113,-327.32368824,0.00019178,2]
[368289739,1751094640122,-460.0,0.00019178,2]
[368289741,1751094640132,-460.0,0.00019178,2]
[368289743,1751094640141,-460.0,0.00019178,2]
[368289745,1751094640152,-460.0,0.00019178,2]
[368289747,1751094640162,-460.0,0.00019178,2]
[368289749,1751094640172,-460.0,0.00019178,2]
[368289752,1751094640182,-460.70374872,0.00019178,2]
[368289754,1751094640191,-460.0,0.00019178,2]
[368289756,1751094640200,-460.0,0.00019178,2]
[368289757,1751094640210,-169.94755432,0.00019178,2]
[368289759,1751094640220,-2083.95,0.00019178,2]
[368289761,1751094640229,-506.7,0.00019178,2]
[368289763,1751094640239,-460.0,0.00019178,2]
[368289764,1751094640402,-460.0,0.00019178,2]
[368289765,1751094640411,-460.0,0.00019178,2]
[368289766,1751094640422,-500.01723743,0.00019178,2]
[368289767,1751094640431,-553.4733,0.00019178,2]
[368289768,1751094640444,-1033.00391388,0.00019204,2]
[368289769,1751094640454,-151.0,0.00019233,2]
[368289770,1751094640463,-155.63764553,0.00019233,2]
[368289771,1751094640472,-151.0,0.00019233,2]
[368289772,1751094640482,-1844.80252239,0.00019351,2]
[368289773,1751094640491,-576.05,0.00019451,2]
[368289774,1751094640502,-576.05,0.00019451,2]
[368289775,1751094640511,-576.05,0.00019451,2]
[368289776,1751094640520,-576.05,0.00019451,2]
[368289777,1751094640529,-460.0,0.00019452,2]
[368289778,1751094640539,-460.0,0.00019452,2]
[368289779,1751094640549,-460.0,0.00019452,2]
[368289780,1751094640558,-460.0,0.00019452,2]
[368289781,1751094640567,-460.0,0.00019452,2]
[368289782,1751094640578,-259.00043933,0.00019452,2]
[368289783,1751094640588,-460.0,0.00019452,2]
[368289784,1751094640598,-460.0,0.00019452,2]
[368289785,1751094640608,-460.0,0.00019452,2]
[368289786,1751094640617,-460.0,0.00019452,2]
[368289787,1751094640627,-481.66,0.00019452,2]
[368289788,1751094640638,-460.0,0.00019452,2]
[368289789,1751094640647,-460.0,0.00019452,2]
[368289790,1751094640657,-460.0,0.00019452,2]
[368289791,1751094640667,-460.0,0.00019452,2]
[368289792,1751094640676,-460.0,0.00019452,2]
[368289793,1751094640686,-460.0,0.00019452,2]
[368289794,1751094640695,-460.0,0.00019452,2]
[368289795,1751094640704,-460.0,0.00019452,2]
[368289796,1751094640714,-460.0,0.00019452,2]
[368289797,1751094640723,-460.0,0.00019452,2]
[368289798,1751094640733,-460.0,0.00019452,2]
[368289799,1751094640743,-460.0,0.00019452,2]
[368289800,1751094640752,-460.0,0.00019452,2]
[368289801,1751094640762,-500.0,0.00019452,2]
[368289802,1751094640771,-460.0,0.00019452,2]
[368289803,1751094640781,-460.0,0.00019452,2]
[368289804,1751094640790,-350.6387841,0.00019452,2]
[368289805,1751094640800,-460.0,0.00019452,2]
[368289806,1751094640810,-460.0,0.00019452,2]
[368289807,1751094640819,-823.67,0.00019452,2]
[368289808,1751094640829,-460.0,0.00019452,2]
[368289809,1751094640838,-460.0,0.00019452,2]
[368289810,1751094640848,-460.0,0.00019452,2]
[368289811,1751094640857,-440.81078802,0.00019452,2]
[368289812,1751094640866,-460.0,0.00019452,2]
[368289813,1751094640876,-250.88684915,0.00019452,2]
[368289814,1751094640885,-460.0,0.00019452,2]
[368289815,1751094640895,-460.0,0.00019452,2]
[368289816,1751094640904,-460.0,0.00019452,2]
[368289817,1751094640914,-460.0,0.00019452,2]
[368289818,1751094640924,-460.0,0.00019452,2]
[368289819,1751094640934,-460.0,0.00019452,2]
[368289820,1751094640944,-460.0,0.00019452,2]
[368289821,1751094640954,-460.0,0.00019452,2]
[368289822,1751094640965,-460.0,0.00019452,2]
[368289823,1751094640975,-301.38249942,0.00019452,2]
[368289824,1751094640986,-500.0,0.00019452,2]
[368289825,1751094640996,-460.0,0.00019452,2]
[368289826,1751094641005,-308.70109751,0.00019452,2]
[368289827,1751094641014,-500.0,0.00019452,2]
[368289828,1751094641024,-460.0,0.00019452,2]
[368289829,1751094641033,-460.0,0.00019452,2]
[368289830,1751094641043,-465.20090635,0.00019452,2]
[368289831,1751094641052,-460.0,0.00019452,2]
[368289832,1751094641061,-460.0,0.00019452,2]
[368289833,1751094641071,-460.0,0.00019452,2]
[368289834,1751094641080,-460.0,0.00019452,2]
[368289835,1751094641090,-467.24063406,0.00019452,2]
[368289836,1751094641100,-510.56232506,0.00019452,2]
[368289837,1751094641111,-460.0,0.00019452,2]
[368289838,1751094641120,-460.0,0.00019452,2]
[368289839,1751094641130,-5301.63,0.00019452,2]
[368289840,1751094641139,-1038.0,0.00019452,2]
[368289841,1751094641149,-460.0,0.00019452,2]
[368289842,1751094641158,-460.0,0.00019452,2]
[368289843,1751094641168,-460.0,0.00019452,2]
[368289844,1751094641178,-1699.45,0.00019452,2]
[368289845,1751094641188,-460.0,0.00019452,2]
[368289846,1751094641198,-1637.92,0.00019452,2]
[368289847,1751094641208,-862.06,0.00019452,2]
[368289848,1751094641217,-3162.09,0.00019452,2]
[368289849,1751094641229,-460.0,0.00019452,2]
[368289850,1751094641239,-531.66,0.00019452,2]
[368289851,1751094641249,-460.0,0.00019452,2]
[368289852,1751094641259,-460.0,0.00019452,2]
[368289853,1751094641269,-504.37492336,0.00019452,2]
[368289854,1751094641279,-460.0,0.00019452,2]
[368289855,1751094641289,-460.0,0.00019452,2]
[368289856,1751094641299,-460.0,0.00019452,2]
[368289857,1751094641310,-460.0,0.00019452,2]
[368289858,1751094641320,-419.75773258,0.00019452,2]
[368289859,1751094641331,-460.0,0.00019452,2]
[368289860,1751094641340,-778.72,0.00019452,2]
[368289861,1751094641352,-1633.53,0.00019452,2]
[368289862,1751094641361,-460.0,0.00019452,2]
[368289863,1751094641372,-460.0,0.00019452,2]
[368289864,1751094641381,-460.0,0.00019452,2]
[368289865,1751094641391,-2727.76,0.00019452,2]
[368289866,1751094641400,-833.98,0.00019452,2]
[368289867,1751094641409,-635.12,0.00019452,2]
[368289868,1751094641418,-460.0,0.00019452,2]
[368289869,1751094641427,-822.76,0.00019452,2]
[368289870,1751094641439,-460.0,0.00019452,2]
[368289871,1751094641448,-460.0,0.00019452,2]
[368289872,1751094641457,-460.0,0.00019452,2]
[368289873,1751094641467,-460.0,0.00019452,2]
[368289874,1751094641476,-764.45,0.00019452,2]
[368289875,1751094641487,-460.0,0.00019452,2]
[368289876,1751094641495,-460.0,0.00019452,2]
[368289877,1751094641505,-460.0,0.00019452,2]
[368289878,1751094641515,-460.0,0.00019452,2]
[368289879,1751094641524,-601.84,0.00019452,2]
[368289880,1751094641533,-461.10861081,0.00019452,2]
[368289881,1751094641542,-460.0,0.00019452,2]
[368289882,1751094641551,-460.0,0.00019452,2]
[368289883,1751094641561,-617.3,0.00019452,2]
[368289884,1751094641571,-460.0,0.00019452,2]
[368289885,1751094641580,-2830.86,0.00019452,2]
[368289886,1751094641589,-467.76444803,0.00019452,2]
[368289887,1751094641600,-460.0,0.00019452,2]
[368289888,1751094641611,-411.63573739,0.00019452,2]
[368289889,1751094641624,-460.0,0.00019452,2]
[368289890,1751094641636,-460.0,0.00019452,2]
[368289891,1751094641646,-460.0,0.00019452,2]
[368289892,1751094641656,-487.16,0.00019452,2]
[368289893,1751094641665,-466.54,0.00019452,2]
[368289894,1751094641675,-460.0,0.00019452,2]
[368289895,1751094641684,-460.0,0.00019452,2]
[368289896,1751094641694,-2150.34,0.00019452,2]
[368289897,1751094641703,-460.0,0.00019452,2]
[368289898,1751094641712,-460.0,0.00019452,2]
[368289899,1751094641722,-551.56,0.00019452,2]
[368289900,1751094641732,-1076.08,0.00019452,2]
[368289901,1751094641741,-460.0,0.00019452,2]
[368289902,1751094641750,-460.0,0.00019452,2]
[368289903,1751094641760,-500.0,0.00019452,2]
[368289904,1751094641769,-460.0,0.00019452,2]
[368289905,1751094641779,-3405.57,0.00019452,2]
[368289906,1751094641790,-460.0,0.00019452,2]
[368289907,1751094641799,-460.0,0.00019452,2]
[368289908,1751094641808,-460.0,0.00019452,2]
[368289909,1751094641818,-2514.69,0.00019452,2]
[368289910,1751094641828,-1181.02,0.00019452,2]
[368289911,1751094641837,-460.0,0.00019452,2]
[368289912,1751094641847,-423.0909058,0.00019452,2]
[368289913,1751094641856,-557.09,0.00019452,2]
[368289914,1751094641866,-460.0,0.00019452,2]
[368289915,1751094641875,-460.0,0.00019452,2]
[368289916,1751094641884,-460.0,0.00019452,2]
[368289917,1751094641894,-460.0,0.00019452,2]
[368289918,1751094641904,-460.0,0.00019452,2]
[368289919,1751094641914,-460.0,0.00019452,2]
[368289920,1751094641923,-460.0,0.00019452,2]
[368289921,1751094641933,-517.92,0.00019452,2]
[368289922,1751094641942,-460.0,0.00019452,2]
[368289923,1751094641952,-460.0,0.00019452,2]
[368289924,1751094641961,-465.55,0.00019452,2]
[368289925,1751094641971,-460.0,0.00019452,2]
[368289926,1751094641980,-351.62,0.00019452,2]
[368289927,1751094641989,-1418.65,0.00019452,2]
[368289928,1751094641999,-464.76228172,0.00019452,2]
[368289929,1751094642008,-493.17,0.00019452,2]
[368289930,1751094642018,-460.0,0.00019452,2]
[368289931,1751094642028,-460.0,0.00019452,2]
[368289932,1751094642038,-1869.93,0.00019452,2]
[368289933,1751094642047,-2065.34,0.00019452,2]
[368289934,1751094642057,-460.0,0.00019452,2]
[368289935,1751094642066,-4376.08,0.00019452,2]
[368289936,1751094642076,-460.0,0.00019452,2]
[368289937,1751094642086,-460.0,0.00019452,2]
[368289938,1751094642096,-463.71,0.00019452,2]
[368289939,1751094642104,-500.0,0.00019452,2]
[368289940,1751094642114,-460.0,0.00019452,2]
[368289941,1751094642123,-460.0,0.00019452,2]
[368289942,1751094642132,-1857.96,0.00019452,2]
[368289943,1751094642142,-460.0,0.00019452,2]
[368289944,1751094642151,-747.42,0.00019452,2]
[368289945,1751094642161,-659.31,0.00019452,2]
[368289946,1751094642170,-992.99,0.00019452,2]
[368289947,1751094642179,-2141.39,0.00019452,2]
[368289948,1751094642189,-668.97,0.00019452,2]
[368289949,1751094642199,-460.0,0.00019452,2]
[368289950,1751094642208,-464.28194219,0.00019452,2]
[368289951,1751094642218,-568.17,0.00019452,2]
[368289952,1751094642227,-460.0,0.00019452,2]
[368289953,1751094642236,-221.88076153,0.00019452,2]
[368289954,1751094642245,-460.0,0.00019452,2]
[368289955,1751094642255,-460.0,0.00019452,2]
[368289956,1751094642264,-460.0,0.00019452,2]
[368289957,1751094642273,-400.69957813,0.00019452,2]
[368289958,1751094642282,-460.0,0.00019452,2]
[368289959,1751094642292,-460.0,0.00019452,2]
[368289960,1751094642301,-478.18911306,0.00019452,2]
[368289961,1751094642311,-460.0,0.00019452,2]
[368289962,1751094642320,-460.0,0.00019452,2]
[368289963,1751094642330,-460.0,0.00019452,2]
[368289964,1751094642339,-460.0,0.00019452,2]
[368289965,1751094642348,-460.0,0.00019452,2]
[368289967,1751094642357,-2083.95,0.00019452,2]
[368289968,1751094642366,-506.7,0.00019452,2]
[368289969,1751094642375,-500.97448561,0.00019584,2]
[368289970,1751094642384,-500.0,0.00019584,2]
[368289971,1751094642394,-509.68531918,0.00019693,2]
[368289972,1751094642403,-500.0,0.00019697,2]
[368289973,1751094642412,-287.1658826,0.00019697,2]
[368289974,1751094642422,-500.0,0.00019697,2]
[368289976,1751094642432,-500.0,0.00019711,2]
[368289977,1751094642444,-500.0,0.00019714,2]
[368289978,1751094642453,-500.0,0.00019714,2]
[368289979,1751094642463,-178.67757898,0.00019716,2]
[368289980,1751094642472,-503.84,0.00019716,3]
[368289981,1751094642481,-576.05,0.00019725,2]
[368289982,1751094642491,-576.05,0.00019725,2]
[368289983,1751094642500,-576.05,0.00019725,2]
[368289984,1751094642510,-470.95122266,0.00019726,2]
[368289985,1751094642520,-454.72463154,0.00019726,2]
[368289986,1751094642529,-460.0,0.00019726,2]
[368289987,1751094642538,-460.0,0.00019726,2]
[368289988,1751094642548,-460.0,0.00019726,2]
[368289989,1751094642558,-460.0,0.00019726,2]
[368289990,1751094642567,-460.0,0.00019726,2]
[368289991,1751094642576,-460.0,0.00019726,2]
[368289992,1751094642587,-460.0,0.00019726,2]
[368289993,1751094642596,-500.0,0.00019726,2]
[368289994,1751094642605,-258.60670793,0.00019726,2]
[368289996,1751094642615,-282.4083037,0.00019726,2]
[368289998,1751094642624,-460.0,0.00019726,2]
[368289999,1751094642634,-460.0,0.00019726,2]
[368290000,1751094642643,-460.0,0.00019726,2]
[368290001,1751094642654,-460.0,0.00019726,2]
[368290002,1751094642663,-518.60071939,0.00019726,2]
[368290003,1751094642673,-823.67,0.00019726,2]
[368290004,1751094642682,-460.0,0.00019726,2]
[368290005,1751094642692,-460.0,0.00019726,2]
[368290007,1751094642701,-460.0,0.00019726,2]
[368290009,1751094642710,-460.0,0.00019726,2]
[368290010,1751094642720,-460.0,0.00019726,2]
[368290011,1751094642729,-315.40342881,0.00019726,2]
[368290013,1751094642739,-460.0,0.00019726,2]
[368290014,1751094642748,-460.0,0.00019726,2]
[368290015,1751094642758,-460.0,0.00019726,2]
[368290016,1751094642769,-460.0,0.00019726,2]
[368290017,1751094642779,-515.63884315,0.00019726,2]
[368290018,1751094642792,-460.0,0.00019726,2]
[368290019,1751094642832,-325.7,0.00019726,2]
[368290020,1751094642843,-460.0,0.00019726,2]
[368290021,1751094642852,-460.0,0.00019726,2]
[368290022,1751094642863,-460.0,0.00019726,2]
[368290023,1751094642872,-460.0,0.00019726,2]
[368290024,1751094642882,-460.0,0.00019726,2]
[368290025,1751094642899,-460.0,0.00019726,2]
[368290026,1751094642909,-5301.63,0.00019726,2]
[368290027,1751094642918,-1038.0,0.00019726,2]
[368290028,1751094642928,-460.0,0.00019726,2]
[368290029,1751094642937,-460.0,0.00019726,2]
[368290030,1751094642946,-374.41268073,0.00019726,2]
[368290031,1751094642956,-1699.45,0.00019726,2]
[368290032,1751094642965,-460.0,0.00019726,2]
[368290033,1751094642974,-1637.92,0.00019726,2]
[368290034,1751094642984,-862.06,0.00019726,2]
[368290035,1751094642994,-3162.09,0.00019726,2]
[368290036,1751094643004,-531.66,0.00019726,2]
[368290037,1751094643014,-390.0,0.00019726,2]
[368290038,1751094643024,-460.0,0.00019726,2]
[368290039,1751094643033,-559.1039196,0.00019726,2]
[368290040,1751094643042,-460.0,0.00019726,2]
[368290041,1751094643051,-460.0,0.00019726,2]
[368290042,1751094643060,-778.72,0.00019726,2]
[368290043,1751094643069,-1633.53,0.00019726,2]
[368290044,1751094643079,-460.0,0.00019726,2]
[368290045,1751094643087,-460.0,0.00019726,2]
[368290046,1751094643097,-223.12521175,0.00019726,2]
[368290047,1751094643106,-2727.76,0.00019726,2]
[368290048,1751094643115,-833.98,0.00019726,2]
[368290049,1751094643124,-635.12,0.00019726,2]
[368290050,1751094643133,-460.0,0.00019726,2]
[368290051,1751094643142,-822.76,0.00019726,2]
[368290052,1751094643152,-460.0,0.00019726,2]
[368290053,1751094643161,-460.0,0.00019726,2]
[368290054,1751094643170,-460.0,0.00019726,2]
[368290055,1751094643180,-764.45,0.00019726,2]
[368290056,1751094643189,-460.0,0.00019726,2]
[368290058,1751094643198,-460.0,0.00019726,2]
[368290060,1751094643207,-460.0,0.00019726,2]
[368290062,1751094643217,-460.0,0.00019726,2]
[368290064,1751094643225,-601.84,0.00019726,2]
[368290066,1751094643234,-460.0,0.00019726,2]
[368290068,1751094643243,-460.0,0.00019726,2]
[368290070,1751094643251,-617.3,0.00019726,2]
[368290071,1751094643260,-460.0,0.00019726,2]
[368290073,1751094643269,-2830.86,0.00019726,2]
[368290076,1751094643278,-460.0,0.00019726,2]
[368290078,1751094643287,-460.0,0.00019726,2]
[368290080,1751094643296,-189.39,0.00019726,2]
[368290082,1751094643304,-460.0,0.00019726,2]
[368290083,1751094643319,-466.54,0.00019726,2]
[368290084,1751094643327,-487.16,0.00019726,2]
[368290085,1751094643337,-460.0,0.00019726,2]
[368290087,1751094643346,-460.0,0.00019726,2]
[368290088,1751094643355,-2150.34,0.00019726,2]
[368290090,1751094643365,-460.0,0.00019726,2]
[368290091,1751094643374,-460.0,0.00019726,2]
[368290093,1751094643383,-551.56,0.00019726,2]
[368290094,1751094643392,-1076.08,0.00019726,2]
[368290095,1751094643401,-460.0,0.00019726,2]
[368290096,1751094643410,-460.0,0.00019726,2]
[368290097,1751094643419,-460.0,0.00019726,2]
[368290098,1751094643429,-3405.57,0.00019726,2]
[368290099,1751094643441,-460.0,0.00019726,2]
[368290100,1751094643454,-460.0,0.00019726,2]
[368290101,1751094643463,-460.0,0.00019726,2]
[368290102,1751094643472,-2514.69,0.00019726,2]
[368290103,1751094643481,-1181.02,0.00019726,2]
[368290104,1751094643491,-460.0,0.00019726,2]
[368290105,1751094643500,-557.09,0.00019726,2]
[368290106,1751094643510,-460.0,0.00019726,2]
[368290107,1751094643519,-460.0,0.00019726,2]
[368290108,1751094643530,-460.0,0.00019726,2]
[368290109,1751094643539,-460.0,0.00019726,2]
[368290110,1751094643548,-460.0,0.00019726,2]
[368290111,1751094643557,-460.0,0.00019726,2]
[368290112,1751094643567,-460.0,0.00019726,2]
[368290113,1751094643576,-460.0,0.00019726,2]
[368290114,1751094643585,-507.7951719,0.00019726,2]
[368290115,1751094643596,-465.55,0.00019726,2]
[368290116,1751094643606,-460.0,0.00019726,2]
[368290117,1751094643615,-1418.65,0.00019726,2]
[368290118,1751094643626,-493.17,0.00019726,2]
[368290119,1751094643635,-460.0,0.00019726,2]
[368290120,1751094643645,-604.97756958,0.00019726,2]
[368290121,1751094643654,-2065.34,0.00019726,2]
[368290122,1751094643664,-1869.93,0.00019726,2]
[368290123,1751094643675,-592.63932121,0.00019726,2]
[368290124,1751094643684,-4376.08,0.00019726,2]
[368290125,1751094643694,-463.71,0.00019726,2]
[368290126,1751094643704,-460.0,0.00019726,2]
[368290127,1751094643714,-460.0,0.00019726,2]
[368290128,1751094643723,-1857.96,0.00019726,2]
[368290129,1751094643733,-460.0,0.00019726,2]
[368290130,1751094643742,-747.42,0.00019726,2]
[368290131,1751094643752,-992.99,0.00019726,2]
[368290132,1751094643762,-659.31,0.00019726,2]
[368290133,1751094643772,-2141.39,0.00019726,2]
[368290134,1751094643782,-668.97,0.00019726,2]
[368290135,1751094643791,-568.17,0.00019726,2]
[368290136,1751094643801,-460.0,0.00019726,2]